bitfinex/quotes_BTCUSD_20250814
["timestamp","ask_amount","ask_price","bid_price","bid_amount"]
[1755149915319,0.09196325,122520.0,122510.0,0.42388]
[1755149915972,0.09196325,122520.0,122510.0,0.29824]
[1755149916403,0.09196325,122520.0,122510.0,0.19656]
[1755149916615,0.09196325,122520.0,122510.0,0.001]
[1755149916836,0.00708,122520.0,122510.0,0.12664]
[1755149917046,0.004,122520.0,122510.0,0.12664]
[1755149917271,0.00707,122520.0,122510.0,0.12664]
[1755149917477,0.00906,122520.0,122510.0,0.12664]
[1755149917904,0.036166,122520.0,122510.0,0.12664]
[1755149920198,0.036166,122520.0,122510.0,0.001]
[1755149920382,0.031106,122520.0,122510.0,0.1266]
[1755149921859,0.004,122520.0,122510.0,0.1266]
[1755149924447,0.00906,122520.0,122510.0,0.1266]
[1755149925067,0.00906,122520.0,122510.0,0.52552]
[1755149927126,0.00906,122520.0,122510.0,0.001]
[1755149927328,0.00906,122520.0,122510.0,0.1266]
[1755149927536,0.036166,122520.0,122510.0,0.1266]
[1755149928830,0.036166,122520.0,122490.0,0.03168827]
[1755149929045,0.036166,122520.0,122490.0,0.11441152]
[1755149929270,0.034176,122520.0,122490.0,0.08272325]
[1755149929920,0.00607,122520.0,122500.0,0.12556]
[1755149930247,0.00307,122520.0,122500.0,0.12556]
[1755149930716,0.00407,122520.0,122500.0,0.12556]
[1755149931150,0.00407,122520.0,122500.0,0.12656]
[1755149931311,0.00507,122520.0,122500.0,0.12656]
[1755149931958,0.00607,122520.0,122500.0,0.12656]
[1755149932309,0.00199,122510.0,122500.0,0.12656]
[1755149932513,0.00506,122510.0,122500.0,0.12656]
[1755149933573,0.00506,122510.0,122500.0,0.12556]
[1755149933785,0.00806,122510.0,122500.0,0.12556]
[1755149934049,0.00607,122510.0,122500.0,0.12556]
[1755149934258,0.003,122510.0,122500.0,0.12556]
[1755149935099,0.003,122510.0,122500.0,0.52448]
[1755149935524,0.004,122510.0,122480.0,0.36421739]
[1755149935733,0.004,122510.0,122480.0,0.48336238]
[1755149936494,0.00307,122520.0,122490.0,0.12556]
[1755149936854,0.001,122510.0,122490.0,0.12556]
[1755149937077,0.002,122510.0,122490.0,0.12556]
[1755149937304,0.001,122510.0,122490.0,0.12556]
[1755149937925,0.00307,122520.0,122490.0,0.12556]
[1755149938658,0.00307,122520.0,122490.0,0.12656]
[1755149939760,0.001,122510.0,122490.0,0.12756]
[1755149940104,0.00307,122520.0,122490.0,0.12656]
[1755149940499,0.00407,122520.0,122490.0,0.21028325]
[1755149940703,0.00407,122520.0,122490.0,0.20928325]
[1755149940947,0.26507,122530.0,122490.0,0.20828325]
[1755149941152,0.001,122510.0,122490.0,0.20928325]
[1755149941565,0.00407,122510.0,122490.0,0.20928325]
[1755149941984,0.00307,122500.0,122490.0,0.08472325]
[1755149942188,0.00307,122500.0,122490.0,0.21024325]
[1755149942424,0.00407,122510.0,122490.0,0.21024325]
[1755149942634,0.00307,122510.0,122500.0,0.12552]
[1755149942849,0.00506,122510.0,122500.0,0.12552]
[1755149944110,0.00706,122510.0,122500.0,0.12552]
[1755149944760,0.00507,122510.0,122500.0,0.12552]
[1755149944999,0.00507,122510.0,122500.0,0.52444]
[1755149945208,0.002,122510.0,122500.0,0.52444]
[1755149945415,0.003,122510.0,122500.0,0.52444]
[1755149946697,0.00596,122510.0,122500.0,0.42276]
[1755149948675,0.00596,122510.0,122500.0,0.32108]
[1755149951281,0.00596,122510.0,122500.0,0.12552]
[1755149952785,0.008,122510.0,122500.0,0.12552]
[1755149955063,0.008,122510.0,122500.0,0.52444]
[1755149955290,0.008,122510.0,122500.0,0.42276]
[1755149955640,0.008,122510.0,122500.0,0.32108]
[1755149955858,0.008,122510.0,122480.0,0.530147]
[1755149956075,0.00296,122500.0,122490.0,0.12544]
[1755149957867,0.00396,122500.0,122490.0,0.12644]
[1755149958834,0.00396,122500.0,122490.0,0.002]
[1755149959041,0.00396,122500.0,122490.0,0.12744]
[1755149960159,0.006,122500.0,122490.0,0.12744]
[1755149965012,0.006,122500.0,122490.0,0.52636]
[1755149966163,0.006,122500.0,122490.0,0.42468]
[1755149967290,0.006,122500.0,122490.0,0.19756]
[1755149967498,0.006,122500.0,122490.0,0.32296]
[1755149969411,0.006,122500.0,122490.0,0.1274]
[1755149969766,0.006,122500.0,122490.0,0.002]
[1755149969983,0.006,122500.0,122490.0,0.1274]
[1755149970193,0.006,122500.0,122460.0,0.01308171]
[1755149970387,0.006,122500.0,122470.0,0.08272325]
[1755149971387,0.005,122500.0,122480.0,0.1254]
[1755149971857,0.00596,122500.0,122480.0,0.1254]
[1755149972008,0.00596,122500.0,122490.0,0.1254]
[1755149972334,0.00404,122500.0,122490.0,0.1254]
[1755149972675,0.00504,122500.0,122490.0,0.1254]
[1755149972808,0.008,122500.0,122490.0,0.1254]
[1755149973218,0.005,122500.0,122490.0,0.1254]
[1755149973421,0.005,122500.0,122490.0,0.1264]
[1755149973618,0.006,122500.0,122490.0,0.1264]
[1755149973847,0.005,122500.0,122490.0,0.1264]
[1755149974178,0.007,122500.0,122490.0,0.1264]
[1755149974977,0.007,122500.0,122490.0,0.22808]
[1755149975209,0.007,122500.0,122490.0,0.52532]
[1755149976731,0.00496,122500.0,122490.0,0.1264]
[1755149977469,0.00296,122500.0,122490.0,0.1264]
[1755149977701,0.00505,122500.0,122490.0,0.1264]
[1755149977906,0.00805,122500.0,122490.0,0.1264]
[1755149978717,0.00805,122500.0,122490.0,0.1254]
[1755149979029,0.00905,122500.0,122490.0,0.1254]
[1755149981319,0.00905,122500.0,122490.0,0.12536]
[1755149983728,0.00696,122500.0,122490.0,0.12536]
[1755149985077,0.00696,122500.0,122490.0,0.52428]
[1755149986642,0.00696,122500.0,122490.0,0.29724]
[1755149986854,0.00905,122500.0,122490.0,0.42256]
[1755149988891,0.00905,122500.0,122490.0,0.32088]
[1755149990568,0.00905,122500.0,122470.0,0.08272325]
[1755149990791,0.00905,122500.0,122480.0,0.12532]
[1755149991128,0.00905,122500.0,122470.0,0.08272325]
[1755149991342,0.00905,122500.0,122480.0,0.12532]
[1755149991532,0.00505,122500.0,122480.0,0.12532]
[1755149991933,0.00705,122500.0,122480.0,0.12532]
[1755149992340,0.00605,122500.0,122480.0,0.12532]
[1755149992749,0.00605,122500.0,122480.0,0.12632]
[1755149993697,0.00605,122500.0,122490.0,0.12532]
[1755149994284,0.00605,122500.0,122480.0,0.001]
[1755149994285,0.00396,122500.0,122480.0,0.001]
[1755149994537,0.00396,122500.0,122490.0,0.12532]
[1755149995030,0.00396,122500.0,122490.0,0.42256]
[1755149995437,0.00605,122500.0,122490.0,0.42256]
[1755149997235,0.00705,122500.0,122470.0,0.08272325]
[1755149997437,0.00409,122500.0,122480.0,0.12532]
[1755149997669,0.00306,122490.0,122480.0,0.12532]
[1755149997888,0.00306,122490.0,122470.0,0.08272325]
[1755149998095,0.00306,122490.0,122480.0,0.12532]
[1755149999942,0.00306,122490.0,122480.0,0.12632]
[1755150000463,0.00306,122500.0,122480.0,0.12628]
[1755150000682,0.001,122490.0,122480.0,0.12628]
[1755150001480,0.00306,122500.0,122480.0,0.12628]
[1755150002106,0.00306,122500.0,122480.0,0.001]
[1755150002320,0.00306,122500.0,122490.0,0.12528]
[1755150002526,0.00515,122500.0,122490.0,0.12528]
[1755150002899,0.00615,122500.0,122490.0,0.12528]
[1755150003505,0.00515,122500.0,122490.0,0.12528]
[1755150003915,0.00915,122500.0,122490.0,0.12528]
[1755150004535,0.00706,122500.0,122470.0,0.08272325]
[1755150004746,0.004,122500.0,122480.0,0.12528]
[1755150004946,0.004,122500.0,122490.0,0.10168]
[1755150005161,0.004,122500.0,122490.0,0.39892]
[1755150005946,0.001,122500.0,122490.0,0.19556]
[1755150006652,0.001,122500.0,122470.0,0.08472325]
[1755150006857,0.003,122500.0,122470.0,0.11933916]
[1755150007068,0.00617,122500.0,122480.0,0.12528]
[1755150007292,0.00717,122500.0,122490.0,0.12528]
[1755150007539,0.00918,122500.0,122490.0,0.12528]
[1755150007747,0.00818,122500.0,122490.0,0.12528]
[1755150007957,0.00518,122500.0,122470.0,0.11933916]
[1755150008168,0.00518,122500.0,122480.0,0.12528]
[1755150009211,0.00618,122500.0,122480.0,0.12528]
[1755150010276,0.00618,122500.0,122480.0,0.12628]
[1755150013645,0.00618,122500.0,122480.0,0.001]
[1755150013883,0.00618,122500.0,122490.0,0.12524]
[1755150014981,0.00618,122500.0,122490.0,0.3286]
[1755150015187,0.00618,122500.0,122490.0,0.52416]
[1755150015809,0.00618,122500.0,122490.0,0.39892]
[1755150016021,0.00618,122500.0,122490.0,0.52416]
[1755150016426,0.00918,122500.0,122490.0,0.52416]
[1755150017776,0.00918,122500.0,122490.0,0.3208]
[1755150020620,0.00918,122500.0,122470.0,0.11933916]
[1755150021037,0.00918,122500.0,122480.0,0.12524]
[1755150021970,0.00818,122500.0,122480.0,0.12524]
[1755150022384,0.00918,122500.0,122480.0,0.12524]
[1755150022800,0.00618,122500.0,122480.0,0.12524]
[1755150022984,0.00518,122500.0,122480.0,0.12524]
[1755150023309,0.00518,122500.0,122470.0,0.11933916]
[1755150023310,0.00417,122500.0,122490.0,0.12524]
[1755150023476,0.00317,122500.0,122490.0,0.12524]
[1755150023710,0.00417,122500.0,122470.0,0.08272325]
[1755150023934,0.00417,122500.0,122480.0,0.12624]
[1755150024364,0.00518,122490.0,122480.0,0.001]
[1755150024540,0.00518,122490.0,122480.0,0.12636]
[1755150025018,0.00518,122490.0,122480.0,0.4236]
[1755150025019,0.08790325,122490.0,122480.0,0.4236]
[1755150025234,0.09669358,122490.0,122480.0,0.29824]
[1755150025474,0.09669358,122490.0,122480.0,0.4236]
[1755150025687,0.09669358,122490.0,122480.0,0.32092]
[1755150026972,0.09869358,122490.0,122480.0,0.32192]
[1755150027189,0.09969358,122490.0,122480.0,0.32192]
[1755150027393,0.09969358,122490.0,122480.0,0.001]
[1755150027606,0.09969358,122490.0,122480.0,0.12632]
[1755150028092,0.09869358,122490.0,122480.0,0.12632]
[1755150028561,0.10269358,122490.0,122480.0,0.12632]
[1755150029197,0.13531455,122490.0,122480.0,0.12632]
[1755150030446,0.13531455,122490.0,122480.0,0.12636]
[1755150030670,0.13531455,122490.0,122480.0,0.001]
[1755150030902,0.09390325,122490.0,122480.0,0.12636]
[1755150032261,0.08872325,122490.0,122480.0,0.12636]
[1755150032496,0.09390325,122490.0,122480.0,0.001]
[1755150032729,0.09390325,122490.0,122480.0,0.12636]
[1755150032949,0.14011509,122490.0,122480.0,0.12636]
[1755150033595,0.14011509,122490.0,122480.0,0.001]
[1755150033811,0.14011509,122490.0,122480.0,0.12636]
[1755150035032,0.14011509,122490.0,122480.0,0.42368]
[1755150035206,0.14011509,122490.0,122480.0,0.29832]
[1755150035417,0.14011509,122490.0,122480.0,0.42368]
[1755150039411,0.14011509,122490.0,122480.0,0.32196]
[1755150040683,0.09390325,122490.0,122480.0,0.001]
[1755150040899,0.09390325,122490.0,122480.0,0.12624]
[1755150041116,0.35590325,122490.0,122480.0,0.12624]
[1755150041710,0.35389325,122490.0,122480.0,0.12624]
[1755150043953,0.35585325,122490.0,122480.0,0.12624]
[1755150044153,0.42826009,122490.0,122480.0,0.12624]
[1755150045135,0.42826009,122490.0,122480.0,0.42356]
[1755150047502,0.42826009,122490.0,122480.0,0.12624]
[1755150052039,0.42826009,122490.0,122480.0,0.001]
[1755150052237,0.42826009,122490.0,122480.0,0.12624]
[1755150055189,0.42826009,122490.0,122480.0,0.42356]
[1755150057493,0.42826009,122490.0,122480.0,0.1966]
[1755150057704,0.42826009,122490.0,122480.0,0.32184]
[1755150059155,0.42826009,122490.0,122480.0,0.12624]
[1755150061384,0.42826009,122490.0,122480.0,0.001]
[1755150061596,0.42826009,122490.0,122480.0,0.12624]
[1755150062108,0.16626009,122490.0,122480.0,0.12624]
[1755150063179,0.16626009,122490.0,122480.0,0.001]
[1755150063391,0.16626009,122490.0,122480.0,0.12624]
[1755150064768,0.16626009,122490.0,122480.0,0.001]
[1755150064973,0.16626009,122490.0,122480.0,0.12624]
[1755150065090,0.16626009,122490.0,122480.0,0.42356]
[1755150065453,0.16626009,122490.0,122480.0,0.29832]
[1755150065682,0.16626009,122490.0,122480.0,0.42356]
[1755150066360,0.09385325,122490.0,122480.0,0.1966]
[1755150066574,0.09385325,122490.0,122480.0,0.32184]
[1755150066793,0.09189325,122490.0,122480.0,0.32184]
[1755150067011,0.08872325,122490.0,122480.0,0.32184]
[1755150067872,0.09196325,122490.0,122480.0,0.32184]
[1755150068106,0.13798109,122490.0,122480.0,0.32184]
[1755150069224,0.13798109,122490.0,122480.0,0.12624]
[1755150069440,0.13798109,122490.0,122480.0,0.001]
[1755150069656,0.13798109,122490.0,122480.0,0.12624]
[1755150070199,0.09196325,122490.0,122480.0,0.12624]
[1755150070610,0.09408325,122490.0,122480.0,0.12624]
[1755150074419,0.09196325,122490.0,122480.0,0.12624]
[1755150074996,0.08872325,122490.0,122480.0,0.42356]
[1755150077020,0.09196325,122490.0,122480.0,0.42356]
[1755150077221,0.12507063,122490.0,122480.0,0.42356]
[1755150078045,0.09196325,122490.0,122480.0,0.42356]
[1755150079620,0.09196325,122490.0,122480.0,0.32184]
[1755150080042,0.09408325,122490.0,122480.0,0.32184]
[1755150080913,0.09408325,122490.0,122480.0,0.001]
[1755150081133,0.09408325,122490.0,122480.0,0.1262]
[1755150081558,0.14031309,122490.0,122480.0,0.1262]
[1755150085007,0.14031309,122490.0,122480.0,0.42352]
[1755150085615,0.14031309,122490.0,122480.0,0.29832]
[1755150085997,0.14031309,122490.0,122480.0,0.42352]
[1755150089734,0.14031309,122490.0,122480.0,0.3218]
[1755150090555,0.14031309,122490.0,122480.0,0.1262]
[1755150091526,0.14031309,122490.0,122480.0,0.001]
[1755150091713,0.14031309,122490.0,122480.0,0.1262]
[1755150092276,0.14031309,122490.0,122480.0,0.001]
[1755150092620,0.17695348,122490.0,122480.0,0.1262]
[1755150095109,0.17695348,122490.0,122480.0,0.42352]
[1755150097073,0.17695348,122490.0,122480.0,0.3218]
[1755150097534,0.17483348,122490.0,122480.0,0.3218]
[1755150098689,0.12860364,122490.0,122480.0,0.3218]
[1755150100402,0.12536364,122490.0,122480.0,0.3218]
[1755150100652,0.08872325,122490.0,122480.0,0.1262]
[1755150102447,0.09083325,122490.0,122480.0,0.1262]
[1755150102754,0.09392325,122490.0,122480.0,0.1262]
[1755150102958,0.13607233,122490.0,122480.0,0.1262]
[1755150104984,0.13607233,122490.0,122480.0,0.42352]
[1755150105582,0.09392325,122490.0,122480.0,0.42352]
[1755150108497,0.09392325,122490.0,122480.0,0.3218]
[1755150110436,0.09392325,122490.0,122480.0,0.1262]
[1755150113769,0.09181325,122490.0,122480.0,0.1262]
[1755150114590,0.09392325,122490.0,122480.0,0.1262]
[1755150115007,0.09392325,122490.0,122480.0,0.22792]
[1755150115124,0.09392325,122490.0,122480.0,0.10172]
[1755150115368,0.43392325,122490.0,122440.0,0.19044602]
[1755150115531,0.43392325,122490.0,122440.0,0.10176785]
[1755150115760,0.43392325,122490.0,122440.0,0.10640523]
[1755150116294,0.42792325,122490.0,122440.0,0.10640523]
[1755150116497,0.08992325,122490.0,122450.0,0.12516]
[1755150116705,0.09092325,122490.0,122450.0,0.12516]
[1755150117557,0.08992325,122490.0,122450.0,0.12516]
[1755150117756,0.09092325,122490.0,122450.0,0.14931652]
[1755150117964,0.08892325,122490.0,122450.0,0.14931652]
[1755150118372,0.08992325,122490.0,122450.0,0.14931652]
[1755150119424,0.08992325,122490.0,122430.0,0.28239322]
[1755150119626,0.08581325,122480.0,122440.0,0.08272325]
[1755150120037,0.06310387,122480.0,122440.0,0.08272325]
[1755150120690,0.00309,122470.0,122450.0,0.12512]
[1755150120971,0.00309,122470.0,122460.0,0.12512]
[1755150122329,0.00509,122470.0,122460.0,0.12512]
[1755150123306,0.06684771,122490.0,122460.0,0.12512]
[1755150123509,0.001,122470.0,122460.0,0.12826]
[1755150124066,0.23205539,122490.0,122460.0,0.12726]
[1755150124457,0.23305539,122490.0,122460.0,0.12826]
[1755150125086,0.23505539,122490.0,122480.0,0.1956]
[1755150125286,0.23716539,122490.0,122480.0,0.32072]
[1755150125492,0.24025539,122490.0,122480.0,0.32072]
[1755150125969,0.23825539,122490.0,122480.0,0.32072]
[1755150126166,0.23725539,122490.0,122480.0,0.1956]
[1755150126369,0.24025539,122490.0,122480.0,0.32172]
[1755150126809,0.24025539,122490.0,122480.0,0.001]
[1755150127017,1.1291596,122490.0,122480.0,0.001]
[1755150127256,1.1291596,122490.0,122480.0,0.12612]
[1755150127459,1.1730896,122490.0,122480.0,0.002]
[1755150127673,0.62418539,122490.0,122480.0,0.12712]
[1755150127904,1.1730896,122490.0,122480.0,0.12712]
[1755150128127,1.1730896,122490.0,122480.0,0.002]
[1755150128322,1.1730896,122490.0,122480.0,0.12712]
[1755150128743,1.11021698,122490.0,122480.0,0.12612]
[1755150129159,1.10721698,122490.0,122480.0,0.12512]
[1755150129362,1.11121698,122490.0,122480.0,0.12612]
[1755150129497,1.11421698,122490.0,122480.0,0.12612]
[1755150130136,0.62618539,122490.0,122480.0,0.12612]
[1755150130532,0.62618539,122490.0,122480.0,0.001]
[1755150131013,0.62618539,122490.0,122480.0,0.12612]
[1755150131732,1.11421698,122490.0,122480.0,0.12612]
[1755150132352,1.04736927,122490.0,122480.0,0.12612]
[1755150132552,0.55933768,122490.0,122480.0,0.12612]
[1755150133618,0.51740768,122490.0,122480.0,0.12612]
[1755150134024,0.51740768,122490.0,122480.0,0.12608]
[1755150134594,0.54186168,122490.0,122480.0,0.12608]
[1755150135067,0.54186168,122490.0,122480.0,0.42344]
[1755150136413,0.54186168,122490.0,122480.0,0.19664]
[1755150136611,0.54186168,122490.0,122480.0,0.32172]
[1755150136828,0.54186168,122490.0,122480.0,0.19664]
[1755150137033,0.54186168,122490.0,122480.0,0.32172]
[1755150139890,1.02989327,122490.0,122480.0,0.12608]
[1755150140914,1.02989327,122490.0,122480.0,0.001]
[1755150140915,1.05489327,122490.0,122480.0,0.001]
[1755150141317,1.05489327,122490.0,122480.0,0.12608]
[1755150142765,1.07989327,122490.0,122480.0,0.12608]
[1755150143395,1.07989327,122490.0,122480.0,0.001]
[1755150143573,1.52089327,122490.0,122480.0,0.001]
[1755150143793,1.52089327,122490.0,122480.0,0.12608]
[1755150144200,1.52089327,122490.0,122480.0,0.001]
[1755150144431,1.52089327,122490.0,122480.0,0.12608]
[1755150144843,1.52089327,122490.0,122480.0,0.001]
[1755150145002,1.52089327,122490.0,122480.0,0.29836]
[1755150145204,1.52089327,122490.0,122480.0,0.42344]
[1755150146448,1.03286168,122490.0,122480.0,0.42344]
[1755150146651,1.52089327,122490.0,122480.0,0.42344]
[1755150147172,1.52089327,122490.0,122480.0,0.19664]
[1755150147295,1.52089327,122490.0,122480.0,0.32172]
[1755150147494,1.52089327,122490.0,122480.0,0.32072]
[1755150147698,0.261,122470.0,122420.0,0.024858]
[1755150147945,0.42272325,122450.0,122430.0,0.00246]
[1755150148176,0.42272325,122450.0,122440.0,0.00205]
[1755150148934,0.42272325,122450.0,122440.0,0.12713]
[1755150149330,0.42272325,122450.0,122440.0,0.12959]
[1755150149796,0.42272325,122450.0,122440.0,0.12955]
[1755150150235,0.42272325,122450.0,122440.0,0.00451]
[1755150150440,0.42272325,122450.0,122440.0,0.12955]
[1755150151068,0.44660336,122450.0,122440.0,0.12955]
[1755150152997,0.44860336,122450.0,122440.0,0.12955]
[1755150153259,0.42472325,122450.0,122440.0,0.12955]
[1755150153434,0.46964157,122450.0,122440.0,0.12955]
[1755150154415,0.47064157,122450.0,122440.0,0.00451]
[1755150154699,0.47064157,122450.0,122440.0,0.12955]
[1755150155088,0.47064157,122450.0,122440.0,0.42699]
[1755150155726,0.47064157,122450.0,122440.0,0.42453]
[1755150156139,0.47587157,122450.0,122440.0,0.42453]
[1755150156565,0.50895044,122450.0,122440.0,0.42453]
[1755150157008,0.50895044,122450.0,122440.0,0.29949]
[1755150157214,0.50895044,122450.0,122440.0,0.32279]
[1755150157715,0.54353546,122450.0,122440.0,0.32279]
[1755150157921,0.54036546,122450.0,122440.0,0.32279]
[1755150158129,0.50728659,122450.0,122440.0,0.32279]
[1755150158330,0.46236827,122450.0,122440.0,0.12711]
[1755150160409,0.46236827,122450.0,122440.0,0.12957]
[1755150160586,0.46236827,122450.0,122440.0,0.00453]
[1755150160803,0.42572325,122450.0,122440.0,0.12957]
[1755150161626,0.42572325,122450.0,122440.0,0.12711]
[1755150161837,0.47157284,122450.0,122440.0,0.12711]
[1755150162143,0.47663284,122450.0,122440.0,0.12711]
[1755150162507,0.47157284,122450.0,122440.0,0.12711]
[1755150165034,0.47157284,122450.0,122440.0,0.42455]
[1755150165279,0.42572325,122450.0,122440.0,0.42701]
[1755150165467,0.68672325,122450.0,122440.0,0.42701]
[1755150165864,0.68672325,122450.0,122440.0,0.42455]
[1755150168901,0.69178325,122450.0,122440.0,0.42248]
[1755150169050,0.76790965,122450.0,122440.0,0.42248]
[1755150170302,0.76790965,122450.0,122440.0,0.12504]
[1755150170897,0.76790965,122450.0,122440.0,0.12711]
[1755150171105,0.76790965,122450.0,122440.0,0.12707]
[1755150171900,0.76790965,122450.0,122440.0,0.125]
[1755150172111,0.76790965,122450.0,122420.0,0.00286]
[1755150172314,0.76790965,122450.0,122440.0,0.125]
[1755150174166,0.76690965,122450.0,122440.0,0.125]
[1755150174690,0.76790965,122450.0,122440.0,0.125]
[1755150174985,0.76690965,122450.0,122440.0,0.22676]
[1755150175131,0.76690965,122450.0,122440.0,0.42244]
[1755150175333,0.76790965,122450.0,122440.0,0.42244]
[1755150177244,0.80540577,122450.0,122440.0,0.42244]
[1755150178530,0.80540577,122450.0,122440.0,0.32068]
[1755150180058,0.80540577,122450.0,122440.0,0.125]
[1755150181243,0.80540577,122450.0,122420.0,0.0004]
[1755150181450,0.80242577,122450.0,122430.0,0.12496]
[1755150181653,0.00298,122440.0,122420.0,0.0004]
[1755150181859,0.08272325,122430.0,122420.0,0.0004]
[1755150182015,0.12245358,122430.0,122420.0,0.00247]
[1755150182223,0.12245358,122430.0,122420.0,0.12536]
[1755150183574,0.12445358,122430.0,122420.0,0.12536]
[1755150184981,0.12445358,122430.0,122420.0,0.29784]
[1755150185114,0.12445358,122430.0,122420.0,0.4228]
[1755150186225,0.38645358,122430.0,122420.0,0.4228]
[1755150186434,0.38445358,122430.0,122420.0,0.4228]
[1755150186747,0.38545358,122430.0,122420.0,0.4228]
[1755150186922,0.38545358,122430.0,122420.0,0.42487]
[1755150187142,0.38039358,122430.0,122420.0,0.32311]
[1755150187352,0.38039358,122430.0,122420.0,0.12743]
[1755150187868,0.37939358,122430.0,122420.0,0.12743]
[1755150188286,0.38039358,122430.0,122420.0,0.12743]
[1755150189857,0.72573358,122430.0,122420.0,0.0004]
[1755150190087,0.72573358,122430.0,122420.0,0.12532]
[1755150191334,0.69106325,122430.0,122420.0,0.12532]
[1755150192862,0.69106325,122430.0,122420.0,0.0004]
[1755150193069,0.69106325,122430.0,122420.0,0.12532]
[1755150193524,0.68572325,122430.0,122420.0,0.12739]
[1755150194656,0.42472325,122430.0,122420.0,0.00247]
[1755150194873,0.42472325,122430.0,122420.0,0.12739]
[1755150195083,0.42472325,122430.0,122420.0,0.52663]
[1755150195283,0.42472325,122430.0,122420.0,0.52909]
[1755150195897,0.46719558,122430.0,122420.0,0.52909]
[1755150196123,0.46719558,122430.0,122420.0,0.52663]
[1755150196536,0.42472325,122430.0,122420.0,0.52663]
[1755150196748,0.42472325,122430.0,122420.0,0.42487]
[1755150197869,0.42472325,122430.0,122420.0,0.30241]
[1755150198090,0.42472325,122430.0,122420.0,0.42733]
[1755150198268,0.42472325,122430.0,122420.0,0.32557]
[1755150198482,0.42472325,122430.0,122420.0,0.12985]
[1755150198734,0.46719558,122430.0,122420.0,0.12985]
[1755150199078,0.08472325,122430.0,122420.0,0.12985]
[1755150200117,0.002,122430.0,122420.0,0.12981]
[1755150200947,0.002,122430.0,122420.0,0.00493]
[1755150201157,0.002,122430.0,122420.0,0.12981]
[1755150201366,0.002,122430.0,122420.0,0.00493]
[1755150201574,0.002,122430.0,122420.0,0.12981]
[1755150201776,0.002,122430.0,122420.0,0.00493]
[1755150201986,0.002,122430.0,122420.0,0.12981]
[1755150202792,0.002,122430.0,122420.0,0.12735]
[1755150203405,0.002,122430.0,122420.0,0.12981]
[1755150205075,0.002,122430.0,122420.0,0.52901]
[1755150206362,0.002,122430.0,122420.0,0.52655]
[1755150206920,0.002,122430.0,122420.0,0.19815]
[1755150207120,0.002,122430.0,122420.0,0.32303]
[1755150208460,0.00411,122430.0,122420.0,0.32303]
[1755150208669,0.00734,122430.0,122420.0,0.32303]
[1755150208980,0.00734,122430.0,122420.0,0.12735]
[1755150209514,0.00734,122430.0,122420.0,0.12528]
[1755150209905,0.00734,122430.0,122420.0,0.12735]
[1755150210565,0.00734,122430.0,122420.0,0.0004]
[1755150211013,0.00734,122430.0,122420.0,0.12524]
[1755150211661,0.00734,122430.0,122420.0,0.12731]
[1755150211869,0.002,122430.0,122420.0,0.12731]
[1755150212921,0.00734,122430.0,122420.0,0.12731]
[1755150213134,0.00523,122430.0,122420.0,0.12731]
[1755150213359,0.002,122430.0,122420.0,0.12731]
[1755150213568,0.002,122430.0,122420.0,0.12977]
[1755150214041,0.002,122430.0,122420.0,0.12731]
[1755150215026,0.002,122430.0,122420.0,0.52651]
[1755150215824,0.00734,122430.0,122420.0,0.52651]
[1755150216200,0.00734,122430.0,122420.0,0.32299]
[1755150218670,0.00734,122430.0,122420.0,0.12731]
[1755150218894,0.00734,122430.0,122420.0,0.00247]
[1755150219072,0.00734,122430.0,122420.0,0.12731]
[1755150221216,0.00734,122430.0,122420.0,0.0004]
[1755150221478,0.09006325,122430.0,122420.0,0.12524]
[1755150221672,0.09006325,122430.0,122420.0,0.0004]
[1755150221876,0.09006325,122430.0,122420.0,0.12524]
[1755150222670,0.12516958,122430.0,122420.0,0.12524]
[1755150222886,0.09006325,122430.0,122420.0,0.12524]
[1755150223254,0.09006325,122430.0,122420.0,0.0004]
[1755150223708,0.09006325,122430.0,122420.0,0.12524]
[1755150223911,0.09006325,122430.0,122420.0,0.0004]
[1755150224087,0.49916957,122430.0,122420.0,0.12524]
[1755150224975,0.49916957,122430.0,122420.0,0.42268]
[1755150226242,0.49916957,122430.0,122420.0,0.19608]
[1755150226451,0.49916957,122430.0,122420.0,0.32092]
[1755150228320,0.49916957,122430.0,122420.0,0.12524]
[1755150232682,0.49916957,122430.0,122370.0,0.11145066]
[1755150232867,0.08272325,122420.0,122370.0,0.22774335]
[1755150233047,0.08584325,122420.0,122390.0,0.024463]
[1755150233896,0.08584325,122420.0,122400.0,0.12484]
[1755150234057,0.00312,122410.0,122400.0,0.12484]
[1755150234255,0.08584325,122410.0,122400.0,0.12484]
[1755150234495,0.08788325,122410.0,122400.0,0.12484]
[1755150235048,0.08788325,122410.0,122400.0,0.548543]
[1755150235452,0.08988325,122410.0,122400.0,0.548543]
[1755150236547,0.09088325,122410.0,122400.0,0.548543]
[1755150237943,0.09088325,122410.0,122400.0,0.345023]
[1755150238329,0.12627157,122410.0,122400.0,0.345023]
[1755150238903,0.09088325,122410.0,122400.0,0.345023]
[1755150239860,0.09088325,122410.0,122400.0,0.149303]
[1755150240544,0.09088325,122410.0,122400.0,0.024463]
[1755150240708,0.09088325,122410.0,122400.0,0.12484]
[1755150241139,0.09088325,122410.0,122390.0,0.024467]
[1755150241338,0.04354832,122410.0,122400.0,0.12484]
[1755150241503,0.12627157,122410.0,122400.0,0.12484]
[1755150241702,0.12427157,122410.0,122400.0,0.12484]
[1755150242291,0.12627157,122410.0,122390.0,0.024467]
[1755150242496,0.08272325,122400.0,122390.0,0.024467]
[1755150242708,0.08788325,122400.0,122390.0,0.149307]
[1755150243328,0.08745675,122400.0,122390.0,0.149307]
[1755150244563,0.08845675,122400.0,122390.0,0.149307]
[1755150244764,0.08945675,122400.0,122390.0,0.149307]
[1755150245026,0.08945675,122400.0,122390.0,0.548547]
[1755150246187,0.12814126,122400.0,122390.0,0.52408]
[1755150246403,0.12814126,122400.0,122390.0,0.29748]